[Event "MPL-1 Indian Chess Tour 2022"]
[Site "Online"]
[Date "2022.03.27"]
[Round "4.8"]
[White "Harika, Dronavalli"]
[Black "Ganguly, Surya Shekhar"]
[Result "0-1"]
[ECO "A18"]
[WhiteElo "2517"]
[BlackElo "2627"]
[Annotator "ChessBase"]
[PlyCount "98"]
[EventDate "2022.03.30"]
[EventType "tourn"]
[EventCountry "NET"]
[SourceTitle "playchess.com"]
[Source "ChessBase"]
[SourceQuality "1"]
[TimeControl "5400+30"]

1. c4 {[%emt 1:15:40]} Nf6 {[%emt 1:15:40]} 2. Nc3 {[%emt 0:00:25]} e6 {[%emt 0:00:22]} 3. e4 {[%emt 0:00:23]} d5 {[%emt 0:00:21]} 4. e5 {[%emt 0:00:25]} d4 {[%emt 0:00:22]} 5. exf6 {[%emt 0:00:22]} dxc3 {[%emt 0:00:21]} 6. bxc3 {[%emt 0:00:20]} Qxf6 {[%emt 0:00:21]} 7. Nf3 {[%emt 0:00:21]} b6 {[%emt 0:00:29]} 8. g3 {[%emt 0:00:24]} Bb7 {[%emt 0:00:26]} 9. Bg2 {[%emt 0:00:21]} Bd6 {[%emt 0:00:53]} 10. O-O {[%emt 0:00:22]} O-O {[%emt 0:00:30]} 11. d4 {[%emt 0:00:21]} h6 {[%emt 0:00:32]} 12. Rb1 {[%emt 0:00:23]} Be4 {[%emt 0:00:47]} 13. Rb5 {[%emt 0:00:21]} Nd7 {[%emt 0:00:48]} 14. a4 {[%emt 0:05:51]} Rad8 {[%emt 0:00:47]} 15. a5 {[%emt 0:00:52]} c6 {[%emt 0:02:21]} 16. Rb3 {[%emt 0:02:03]} c5 {[%emt 0:00:35]} 17. Qe2 {[%emt 0:02:34]} Bh7 {[%emt 0:01:55]} 18. axb6 {[%emt 0:00:33]} axb6 {[%emt 0:00:35]} 19. Be3 {[%emt 0:00:35]} e5 {[%emt 0:00:35]} 20. Rd1 {[%emt 0:01:20]} Rfe8 {[%emt 0:01:06]} 21. Rb2 {[%emt 0:01:57]} e4 {[%emt 0:02:10]} 22. Nd2 {[%emt 0:00:35]} Qe7 {[%emt 0:00:29]} 23. Ra2 {[%emt 0:01:24]} f5 {[%emt 0:00:35]} 24. Ra7 {[%emt 0:00:21]} g5 {[%emt 0:00:26]} 25. dxc5 {[%emt 0:00:31]} bxc5 {[%emt 0:00:33]} 26. Nb3 {[%emt 0:00:30]} Qe6 {[%emt 0:02:06]} 27. Ra6 {[%emt 0:00:43]} Nb8 {[%emt 0:01:59]} 28. Rb6 {[%emt 0:01:27]} Qe7 {[%emt 0:00:42]} 29. Qh5 {[%emt 0:00:22]} f4 {[%emt 0:01:33]} 30. Rdxd6 {[%emt 0:00:41]} Rxd6 {[%emt 0:00:23]} 31. Rxd6 {[%emt 0:00:21]} fxe3 {[%emt 0:00:21]} 32. fxe3 {[%emt 0:00:28]} Qxd6 {[%emt 0:00:29]} 33. Qxe8+ {[%emt 0:00:22]} Kg7 {[%emt 0:00:21]} 34. Nd2 {[%emt 0:01:44]} Bg6 {[%emt 0:00:38]} 35. Qc8 {[%emt 0:00:50]} Qxd2 {[%emt 0:00:24]} 36. Qxb8 {[%emt 0:00:20]} Qxe3+ {[%emt 0:00:35]} 37. Kf1 {[%emt 0:00:22]} Qd3+ {[%emt 0:00:23]} 38. Ke1 {[%emt 0:00:31]} Qxc3+ {[%emt 0:00:23]} 39. Kf1 {[%emt 0:01:10]} Qxc4+ {[%emt 0:00:24]} 40. Ke1 {[%emt 0:00:21]} Qc3+ {[%emt 0:00:24]} 41. Kf1 {[%emt 0:00:23]} e3 {[%emt 0:01:07]} 42. Qc7+ {[%emt 0:00:27]} Bf7 {[%emt 0:00:21]} 43. Bf3 {[%emt 0:00:29]} Qb2 {[%emt 0:01:31]} 44. Be2 {[%emt 0:00:22]} Qf6+ {[%emt 0:00:23]} 45. Ke1 {[%emt 0:00:24]} Qa1+ {[%emt 0:00:32]} 46. Bd1 {[%emt 0:00:21]} Qc3+ {[%emt 0:00:21]} 47. Kf1 {[%emt 0:00:21]} Qf6+ {[%emt 0:00:28]} 48. Kg2 {[%emt 0:00:21]} Qf2+ {[%emt 0:00:25]} 49. Kh3 {[%emt 0:00:28]} Qf1+ {[%emt 0:00:21]} 0-1

[Event "MPL-1 Indian Chess Tour 2022"]
[Site "Online"]
[Date "2022.03.27"]
[Round "5.1"]
[White "Ganguly, Surya Shekhar"]
[Black "Sethuraman, S.P."]
[Result "1-0"]
[ECO "A11"]
[WhiteElo "2627"]
[BlackElo "2619"]
[Annotator "RC"]
[PlyCount "97"]
[EventDate "2022.03.30"]
[EventType "tourn"]
[EventCountry "NET"]
[SourceTitle "playchess.com"]
[Source "ChessBase"]
[SourceQuality "1"]
[TimeControl "5400+30"]

1. Nf3 {[%emt 1:15:40]} d5 {[%emt 1:15:40]} 2. e3 {[%emt 0:00:22]} Nf6 {[%emt 0:00:28]} 3. c4 {[%emt 0:00:25]} c6 {[%emt 0:00:28]} 4. Nc3 {[%emt 0:00:23]} e6 {[%emt 0:00:40]} 5. b3 {[%emt 0:00:24]} Bd6 {[%emt 0:00:39]} 6. Bb2 {[%emt 0:00:22]} e5 {[%emt 0:00:46]} 7. cxd5 {[%emt 0:00:55]} cxd5 {[%emt 0:00:20]} 8. Nb5 {[%emt 0:00:27]} Nc6 {[%emt 0:00:22]} 9. Nxd6+ {[%emt 0:02:14]} Qxd6 {[%emt 0:00:20]} 10. Bb5 {[%emt 0:00:25]} Nd7 {[%emt 0:04:48]} 11. O-O {[%emt 0:00:28]} O-O {[%emt 0:00:44]} 12. Rc1 {[%emt 0:02:35]} a6 {[%emt 0:00:40]} 13. Bxc6 {[%emt 0:01:34]} bxc6 {[%emt 0:00:20]} 14. Qc2 {[%emt 0:00:20]} Bb7 {[%emt 0:02:43]} 15. d4 {[%emt 0:01:47]} e4 {[%emt 0:00:24]} 16. Ne5 {[%emt 0:00:21]} f6 {[%emt 0:00:55]} 17. Ba3 {[%emt 0:00:39]} Qxa3 {[%emt 0:00:26]} 18. Nxd7 {[%emt 0:00:22]} Rf7 {[%emt 0:00:21]} 19. Nc5 {[%emt 0:01:04]} Bc8 {[%emt 0:00:22]} 20. Qc3 {[%emt 0:02:16]} a5 {[%emt 0:00:53]} 21. Rc2 {[%emt 0:00:33]} Qb4 {[%emt 0:01:39]} 22. Rfc1 {[%emt 0:01:17]} Rc7 {[%emt 0:00:43]} 23. a3 {[%emt 0:00:46]} Qb5 {[%emt 0:00:46]} 24. Rb2 {[%emt 0:00:45]} Rb8 {[%emt 0:01:09]} 25. b4 {[%emt 0:01:27]} a4 {[%emt 0:00:28]} 26. Qc2 {[%emt 0:00:47]} Ra8 {[%emt 0:00:32]} 27. Qe2 {[%emt 0:00:21]} Bf5 {[%emt 0:02:25]} 28. Qh5 {[%emt 0:01:22]} Bg6 {[%emt 0:00:22]} 29. Qg4 {[%emt 0:00:24]} Re7 {[%emt 0:00:24]} 30. h4 {[%emt 0:00:25]} Be8 {[%emt 0:00:48]} 31. Qf4 {[%emt 0:00:36]} Rd8 {[%emt 0:00:34]} 32. Rbc2 {[%emt 0:00:30]} Qb8 {[%emt 0:01:42]} 33. Qxb8 {[%emt 0:00:32]} Rxb8 {[%emt 0:00:20]} 34. Rc3 {[%emt 0:00:23]} Ra8 {[%emt 0:00:25]} 35. f3 {[%emt 0:00:41]} f5 {[%emt 0:01:08]} 36. Kf2 {[%emt 0:00:24]} g6 {[%emt 0:00:35]} 37. Kg3 {[%emt 0:00:47]} Kg7 {[%emt 0:00:21]} 38. Kf4 {[%emt 0:00:36]} h6 {[%emt 0:01:13]} 39. fxe4 {[%emt 0:00:44]} fxe4 {[%emt 0:00:33]} 40. g4 {[%emt 0:00:24]} Bd7 {[%emt 0:01:09]} 41. Nxd7 {[%emt 0:00:49]} Rxd7 {[%emt 0:00:23]} 42. Rxc6 {[%emt 0:00:21]} Rf8+ {[%emt 0:01:10]} 43. Ke5 {[%emt 0:00:22]} Rf3 {[%emt 0:00:22]} 44. Rc7 {[%emt 0:00:29]} Rdf7 {[%emt 0:00:25]} 45. R1c3 {[%emt 0:00:57]} Rg3 {[%emt 0:00:37]} 46. b5 {[%emt 0:00:29]} Rxg4 {[%emt 0:00:24]} 47. b6 {[%emt 0:00:27]} Rg1 {[%emt 0:00:31]} 48. Rxf7+ {[%emt 0:00:28]} Kxf7 {[%emt 0:00:27]} 49. Rc7+ {[%emt 0:00:23]} 1-0

[Event "MPL-1 Indian Chess Tour 2022"]
[Site "Online"]
[Date "2022.03.27"]
[Round "5.2"]
[White "Mendonca, Leon Luke"]
[Black "Harika, Dronavalli"]
[Result "1/2-1/2"]
[ECO "A43"]
[WhiteElo "2536"]
[BlackElo "2517"]
[Annotator "RC"]
[PlyCount "56"]
[EventDate "2022.03.30"]
[EventType "tourn"]
[EventCountry "NET"]
[SourceTitle "playchess.com"]
[Source "ChessBase"]
[SourceQuality "1"]
[TimeControl "5400+30"]

1. d4 {[%emt 1:15:40]} Nf6 {[%emt 1:15:40]} 2. Nf3 {[%emt 0:00:35]} c5 {[%emt 0:00:25]} 3. d5 {[%emt 0:00:43]} b5 {[%emt 0:00:22]} 4. e4 {[%emt 0:01:46]} Nxe4 {[%emt 0:01:03]} 5. Bd3 {[%emt 0:00:26]} Nd6 {[%emt 0:00:22]} 6. O-O {[%emt 0:00:44]} Bb7 {[%emt 0:01:12]} 7. Re1 {[%emt 0:02:58]} e6 {[%emt 0:01:27]} 8. Bf4 {[%emt 0:01:48]} c4 {[%emt 0:04:54]} 9. Bf1 {[%emt 0:01:43]} Be7 {[%emt 0:00:24]} 10. a4 {[%emt 0:01:51]} a6 {[%emt 0:01:55]} 11. Nc3 {[%emt 0:01:31]} b4 {[%emt 0:01:28]} 12. Na2 {[%emt 0:01:07]} a5 {[%emt 0:01:16]} 13. Bxd6 {[%emt 0:03:02]} Bxd6 {[%emt 0:00:21]} 14. Bxc4 {[%emt 0:00:20]} O-O {[%emt 0:00:23]} 15. Qd4 {[%emt 0:01:19]} Be7 {[%emt 0:03:11]} 16. Rad1 {[%emt 0:01:34]} Bf6 {[%emt 0:00:22]} 17. Qe4 {[%emt 0:01:13]} Bxb2 {[%emt 0:01:06]} 18. h4 {[%emt 0:00:42]} exd5 {[%emt 0:01:36]} 19. Bxd5 {[%emt 0:00:22]} Bxd5 {[%emt 0:00:24]} 20. Rxd5 {[%emt 0:00:23]} Ra6 {[%emt 0:00:50]} 21. Red1 {[%emt 0:00:44]} Re8 {[%emt 0:00:51]} 22. Qd3 {[%emt 0:00:39]} h6 {[%emt 0:00:38]} 23. Nc1 {[%emt 0:00:29]} Bxc1 {[%emt 0:00:46]} 24. Rxc1 {[%emt 0:00:20]} Rae6 {[%emt 0:00:27]} 25. Qf5 {[%emt 0:00:44]} Rf6 {[%emt 0:00:44]} 26. Qd3 {[%emt 0:00:32]} Rfe6 {[%emt 0:00:34]} 27. Qf5 {[%emt 0:00:30]} Nc6 {[%emt 0:00:30]} 28. Qd3 {[%emt 0:00:31]} Nb8 {[%emt 0:00:47]} 1/2-1/2

[Event "MPL-1 Indian Chess Tour 2022"]
[Site "Online"]
[Date "2022.03.27"]
[Round "5.4"]
[White "Karthikeyan, Murali"]
[Black "Erigaisi Arjun"]
[Result "0-1"]
[ECO "B30"]
[WhiteElo "2622"]
[BlackElo "2633"]
[Annotator "COMBH"]
[PlyCount "102"]
[EventDate "2022.03.30"]
[EventType "tourn"]
[EventCountry "NET"]
[SourceTitle "playchess.com"]
[Source "ChessBase"]
[SourceQuality "1"]
[TimeControl "5400+30"]

1. e4 {[%emt 1:15:40]} c5 {[%emt 1:15:40]} 2. Nf3 {[%emt 0:00:22]} e6 {[%emt 0:00:22]} 3. Nc3 {[%emt 0:00:23]} Nc6 {[%emt 0:00:21]} 4. Bb5 {[%emt 0:00:25]} Nge7 {[%emt 0:00:31]} 5. d4 {[%emt 0:00:48]} cxd4 {[%emt 0:00:24]} 6. Nxd4 {[%emt 0:00:20]} Nxd4 {[%emt 0:00:27]} 7. Qxd4 {[%emt 0:00:22]} a6 {[%emt 0:00:21]} 8. Be2 {[%emt 0:01:47]} Nc6 {[%emt 0:00:24]} 9. Qd3 {[%emt 0:00:31]} Bc5 {[%emt 0:01:40]} 10. O-O {[%emt 0:01:19]} b5 {[%emt 0:00:50]} 11. a3 {[%emt 0:00:54]} d6 {[%emt 0:00:54]} 12. Be3 {[%emt 0:00:39]} Bb7 {[%emt 0:00:43]} 13. Rad1 {[%emt 0:01:36]} Qc7 {[%emt 0:00:23]} 14. Bf4 {[%emt 0:00:54]} Rd8 {[%emt 0:01:01]} 15. Qg3 {[%emt 0:00:50]} O-O {[%emt 0:00:31]} 16. Rd2 {[%emt 0:00:56]} Nd4 {[%emt 0:01:03]} 17. Bg4 {[%emt 0:03:12]} e5 {[%emt 0:05:04]} 18. Be3 {[%emt 0:00:39]} f5 {[%emt 0:01:06]} 19. exf5 {[%emt 0:00:28]} Nxf5 {[%emt 0:00:20]} 20. Bxf5 {[%emt 0:00:21]} Rxf5 {[%emt 0:00:20]} 21. Bxc5 {[%emt 0:01:06]} Qxc5 {[%emt 0:00:51]} 22. Rfd1 {[%emt 0:01:24]} Rf6 {[%emt 0:03:08]} 23. Qe3 {[%emt 0:03:01]} Qxe3 {[%emt 0:00:29]} 24. fxe3 {[%emt 0:00:20]} Kf7 {[%emt 0:00:20]} 25. a4 {[%emt 0:01:03]} b4 {[%emt 0:00:27]} 26. Nd5 {[%emt 0:00:24]} Bxd5 {[%emt 0:00:21]} 27. Rxd5 {[%emt 0:00:20]} Ke7 {[%emt 0:01:09]} 28. h3 {[%emt 0:02:58]} Rc8 {[%emt 0:00:26]} 29. R1d2 {[%emt 0:00:22]} Rc6 {[%emt 0:00:31]} 30. R5d3 {[%emt 0:00:37]} Rf8 {[%emt 0:00:50]} 31. Rb3 {[%emt 0:00:30]} a5 {[%emt 0:01:05]} 32. c3 {[%emt 0:00:29]} bxc3 {[%emt 0:00:56]} 33. Rb7+ {[%emt 0:00:50]} Ke6 {[%emt 0:00:39]} 34. bxc3 {[%emt 0:00:21]} g6 {[%emt 0:01:06]} 35. Rxh7 {[%emt 0:00:33]} Rxc3 {[%emt 0:00:22]} 36. Rg7 {[%emt 0:00:32]} Rf6 {[%emt 0:00:26]} 37. Ra7 {[%emt 0:00:22]} Rxe3 {[%emt 0:00:35]} 38. Ra6 {[%emt 0:01:02]} Kd7 {[%emt 0:00:45]} 39. Ra7+ {[%emt 0:00:43]} Kc6 {[%emt 0:00:21]} 40. Ra6+ {[%emt 0:00:31]} Kc7 {[%emt 0:00:25]} 41. Rxa5 {[%emt 0:00:26]} e4 {[%emt 0:00:23]} 42. Rc2+ {[%emt 0:00:46]} Kd7 {[%emt 0:00:28]} 43. Ra7+ {[%emt 0:00:27]} Ke6 {[%emt 0:00:22]} 44. a5 {[%emt 0:00:23]} Ra3 {[%emt 0:01:43]} 45. a6 {[%emt 0:00:25]} Ke5 {[%emt 0:00:23]} 46. Ra8 {[%emt 0:00:44]} e3 {[%emt 0:01:05]} 47. a7 {[%emt 0:00:35]} Kd4 {[%emt 0:00:21]} 48. Rc1 {[%emt 0:00:31]} Kd3 {[%emt 0:00:47]} 49. Rd8 {[%emt 0:00:34]} Rxa7 {[%emt 0:00:27]} 50. Rd1+ {[%emt 0:00:22]} Kc2 {[%emt 0:00:27]} 51. Rf1 {[%emt 0:00:32]} e2 {[%emt 0:00:32]} 0-1

[Event "MPL-1 Indian Chess Tour 2022"]
[Site "Online"]
[Date "2022.03.31"]
[Round "5.7"]
[White "Sadhwani, Raunak"]
[Black "Lalith Babu M R"]
[Result "0-1"]
[ECO "B15"]
[WhiteElo "2616"]
[BlackElo "2563"]
[Annotator "RC"]
[PlyCount "96"]
[EventDate "2022.03.30"]
[EventType "tourn"]
[EventCountry "NET"]
[SourceTitle "playchess.com"]
[Source "ChessBase"]
[SourceQuality "1"]
[TimeControl "5400+30"]

1. e4 {[%emt 1:15:40]} g6 {[%emt 1:15:40]} 2. d4 {[%emt 0:00:22]} Bg7 {[%emt 0:00:21]} 3. Nc3 {[%emt 0:00:23]} c6 {[%emt 0:00:22]} 4. f4 {[%emt 0:00:22]} d5 {[%emt 0:00:21]} 5. e5 {[%emt 0:00:21]} Nh6 {[%emt 0:00:21]} 6. Be2 {[%emt 0:01:13]} f6 {[%emt 0:02:36]} 7. Nf3 {[%emt 0:00:54]} Qb6 {[%emt 0:00:23]} 8. O-O {[%emt 0:00:43]} Bg4 {[%emt 0:00:26]} 9. Na4 {[%emt 0:00:26]} Qc7 {[%emt 0:00:31]} 10. h3 {[%emt 0:01:26]} Bxf3 {[%emt 0:00:23]} 11. Bxf3 {[%emt 0:00:20]} Nd7 {[%emt 0:00:24]} 12. g4 {[%emt 0:03:08]} fxe5 {[%emt 0:01:55]} 13. fxe5 {[%emt 0:00:21]} e6 {[%emt 0:00:21]} 14. Nc3 {[%emt 0:00:52]} Nf7 {[%emt 0:00:35]} 15. Ne2 {[%emt 0:00:22]} Qd8 {[%emt 0:00:26]} 16. c3 {[%emt 0:00:32]} Qe7 {[%emt 0:00:30]} 17. Bg2 {[%emt 0:00:31]} O-O {[%emt 0:00:44]} 18. Qe1 {[%emt 0:01:08]} c5 {[%emt 0:00:39]} 19. h4 {[%emt 0:00:37]} cxd4 {[%emt 0:00:21]} 20. cxd4 {[%emt 0:00:20]} Rac8 {[%emt 0:00:22]} 21. Bd2 {[%emt 0:01:34]} Nd8 {[%emt 0:00:35]} 22. Rxf8+ {[%emt 0:00:45]} Qxf8 {[%emt 0:00:32]} 23. Rc1 {[%emt 0:00:34]} Rxc1 {[%emt 0:00:36]} 24. Qxc1 {[%emt 0:00:20]} Nc6 {[%emt 0:00:20]} 25. Be3 {[%emt 0:02:35]} Qb4 {[%emt 0:00:39]} 26. h5 {[%emt 0:00:39]} g5 {[%emt 0:00:56]} 27. h6 {[%emt 0:03:48]} Bxh6 {[%emt 0:00:25]} 28. b3 {[%emt 0:01:19]} Bg7 {[%emt 0:00:34]} 29. Kh1 {[%emt 0:01:17]} h6 {[%emt 0:00:24]} 30. Bf3 {[%emt 0:01:07]} Nf8 {[%emt 0:00:54]} 31. Bf2 {[%emt 0:00:47]} Ng6 {[%emt 0:01:49]} 32. Qc2 {[%emt 0:00:21]} Nf8 {[%emt 0:00:34]} 33. Kg2 {[%emt 0:00:38]} a6 {[%emt 0:00:24]} 34. Qb2 {[%emt 0:00:33]} Ng6 {[%emt 0:00:36]} 35. Qc2 {[%emt 0:00:29]} Nf8 {[%emt 0:00:22]} 36. Qb2 {[%emt 0:00:20]} Qe7 {[%emt 0:00:24]} 37. Ng3 {[%emt 0:00:33]} Ng6 {[%emt 0:00:21]} 38. Nh5 {[%emt 0:00:21]} Qf7 {[%emt 0:00:22]} 39. Bg3 {[%emt 0:00:28]} Bf8 {[%emt 0:00:59]} 40. Bd1 {[%emt 0:00:43]} Be7 {[%emt 0:00:24]} 41. Qd2 {[%emt 0:00:34]} Kf8 {[%emt 0:01:21]} 42. Bc2 {[%emt 0:00:28]} Ke8 {[%emt 0:00:22]} 43. Bb1 {[%emt 0:01:06]} Kd8 {[%emt 0:00:23]} 44. Qf2 {[%emt 0:00:36]} Qxf2+ {[%emt 0:00:35]} 45. Kxf2 {[%emt 0:00:32]} Nh4 {[%emt 0:00:25]} 46. Ke3 {[%emt 0:00:28]} Ba3 {[%emt 0:00:23]} 47. Bxh4 {[%emt 0:00:44]} gxh4 {[%emt 0:00:21]} 48. Nf4 {[%emt 0:00:25]} Bc1+ {[%emt 0:00:26]} 0-1

[Event "MPL-1 Indian Chess Tour 2022"]
[Site "Online"]
[Date "2022.03.27"]
[Round "6.8"]
[White "Ganguly, Surya Shekhar"]
[Black "Mendonca, Leon Luke"]
[Result "1-0"]
[ECO "A11"]
[WhiteElo "2627"]
[BlackElo "2536"]
[Annotator "RC"]
[PlyCount "111"]
[EventDate "2022.03.30"]
[EventType "tourn"]
[EventCountry "NET"]
[SourceTitle "playchess.com"]
[Source "ChessBase"]
[SourceQuality "1"]
[TimeControl "5400+30"]

1. c4 {[%emt 1:15:40]} e6 {[%emt 1:15:40]} 2. Nc3 {[%emt 0:00:26]} d5 {[%emt 0:00:25]} 3. e3 {[%emt 0:00:26]} Nf6 {[%emt 0:00:28]} 4. Nf3 {[%emt 0:00:23]} c6 {[%emt 0:00:27]} 5. b3 {[%emt 0:00:22]} Bd6 {[%emt 0:00:26]} 6. Bb2 {[%emt 0:00:22]} O-O {[%emt 0:00:52]} 7. Qc2 {[%emt 0:00:24]} e5 {[%emt 0:03:19]} 8. cxd5 {[%emt 0:00:26]} cxd5 {[%emt 0:00:21]} 9. Nb5 {[%emt 0:00:21]} Nc6 {[%emt 0:00:55]} 10. Nxd6 {[%emt 0:00:29]} Qxd6 {[%emt 0:00:21]} 11. Bb5 {[%emt 0:00:54]} Bg4 {[%emt 0:02:22]} 12. Bxc6 {[%emt 0:01:42]} Bxf3 {[%emt 0:00:37]} 13. gxf3 {[%emt 0:00:20]} bxc6 {[%emt 0:01:00]} 14. Rc1 {[%emt 0:01:20]} Rac8 {[%emt 0:00:54]} 15. Rg1 {[%emt 0:02:36]} Rfe8 {[%emt 0:01:55]} 16. Qf5 {[%emt 0:01:01]} d4 {[%emt 0:01:12]} 17. Kf1 {[%emt 0:02:00]} g6 {[%emt 0:01:11]} 18. f4 {[%emt 0:01:06]} exf4 {[%emt 0:01:01]} 19. Bxd4 {[%emt 0:01:49]} Nd5 {[%emt 0:04:31]} 20. Rc5 {[%emt 0:01:29]} fxe3 {[%emt 0:00:48]} 21. dxe3 {[%emt 0:00:28]} Qxh2 {[%emt 0:00:35]} 22. Qf3 {[%emt 0:00:33]} Qd6 {[%emt 0:00:51]} 23. Qh5 {[%emt 0:01:50]} Qe6 {[%emt 0:00:48]} 24. Qxh7+ {[%emt 0:00:29]} Kf8 {[%emt 0:00:33]} 25. Ra5 {[%emt 0:00:44]} Ke7 {[%emt 0:00:29]} 26. Rg5 {[%emt 0:01:21]} Kd8 {[%emt 0:01:12]} 27. Rxa7 {[%emt 0:00:49]} Rc7 {[%emt 0:00:36]} 28. Re5 {[%emt 0:01:21]} Qd7 {[%emt 0:00:29]} 29. Qh4+ {[%emt 0:01:32]} f6 {[%emt 0:00:26]} 30. Rxe8+ {[%emt 0:00:50]} Kxe8 {[%emt 0:00:34]} 31. Ra8+ {[%emt 0:00:27]} Kf7 {[%emt 0:00:31]} 32. Qh7+ {[%emt 0:00:28]} Ke6 {[%emt 0:00:23]} 33. Qxg6 {[%emt 0:00:28]} Qf7 {[%emt 0:00:37]} 34. Re8+ {[%emt 0:00:52]} Ne7 {[%emt 0:00:31]} 35. Qe4+ {[%emt 0:01:14]} Kd7 {[%emt 0:00:25]} 36. Rh8 {[%emt 0:00:21]} Qe6 {[%emt 0:00:32]} 37. Qxe6+ {[%emt 0:00:30]} Kxe6 {[%emt 0:00:21]} 38. Rh6 {[%emt 0:00:36]} Ng8 {[%emt 0:00:34]} 39. Rh5 {[%emt 0:00:24]} Ne7 {[%emt 0:00:25]} 40. Ra5 {[%emt 0:00:27]} Nf5 {[%emt 0:00:31]} 41. Ra7 {[%emt 0:00:30]} Rc8 {[%emt 0:00:21]} 42. Bc5 {[%emt 0:00:22]} Kd5 {[%emt 0:00:46]} 43. b4 {[%emt 0:00:21]} Rh8 {[%emt 0:00:32]} 44. Ke2 {[%emt 0:00:26]} Kc4 {[%emt 0:00:24]} 45. a4 {[%emt 0:00:47]} Rh2 {[%emt 0:00:30]} 46. a5 {[%emt 0:00:25]} Ng3+ {[%emt 0:00:22]} 47. Kf3 {[%emt 0:00:20]} Nf1 {[%emt 0:00:23]} 48. Rd7 {[%emt 0:00:27]} Kc3 {[%emt 0:00:34]} 49. a6 {[%emt 0:01:18]} Nd2+ {[%emt 0:00:24]} 50. Kg3 {[%emt 0:00:26]} Rh8 {[%emt 0:00:30]} 51. Kf4 {[%emt 0:00:34]} Nc4 {[%emt 0:00:51]} 52. a7 {[%emt 0:00:28]} Ne5 {[%emt 0:00:35]} 53. Rb7 {[%emt 0:00:26]} Nd3+ {[%emt 0:00:25]} 54. Kf5 {[%emt 0:00:26]} Nxc5 {[%emt 0:00:26]} 55. bxc5 {[%emt 0:00:34]} Ra8 {[%emt 0:00:30]} 56. Ke6 {[%emt 0:00:21]} 1-0

[Event "MPL-1 Indian Chess Tour 2022"]
[Site "Online"]
[Date "2022.03.27"]
[Round "8.1"]
[White "Sethuraman, S.P."]
[Black "Lalith Babu M R"]
[Result "0-1"]
[ECO "B15"]
[WhiteElo "2619"]
[BlackElo "2563"]
[Annotator "ChessBase"]
[PlyCount "98"]
[EventDate "2022.03.30"]
[EventType "tourn"]
[EventCountry "NET"]
[SourceTitle "playchess.com"]
[Source "ChessBase"]
[SourceQuality "1"]
[TimeControl "5400+30"]

1. e4 {[%emt 1:15:40]} g6 {[%emt 1:15:40]} 2. d4 {[%emt 0:00:22]} Bg7 {[%emt 0:00:21]} 3. Nc3 {[%emt 0:00:20]} c6 {[%emt 0:00:21]} 4. f4 {[%emt 0:00:22]} d5 {[%emt 0:00:21]} 5. e5 {[%emt 0:00:22]} Qb6 {[%emt 0:00:21]} 6. Nf3 {[%emt 0:00:29]} Bg4 {[%emt 0:00:21]} 7. Be2 {[%emt 0:00:41]} Nh6 {[%emt 0:00:21]} 8. Na4 {[%emt 0:00:41]} Qa5+ {[%emt 0:00:23]} 9. c3 {[%emt 0:00:22]} Nd7 {[%emt 0:00:21]} 10. b4 {[%emt 0:00:49]} Qc7 {[%emt 0:00:22]} 11. Be3 {[%emt 0:00:22]} b5 {[%emt 0:01:53]} 12. Nb2 {[%emt 0:00:46]} Nf5 {[%emt 0:02:46]} 13. Bf2 {[%emt 0:00:23]} h5 {[%emt 0:00:25]} 14. e6 {[%emt 0:02:19]} fxe6 {[%emt 0:00:23]} 15. Nd3 {[%emt 0:01:03]} Bxf3 {[%emt 0:00:30]} 16. Bxf3 {[%emt 0:00:20]} a5 {[%emt 0:00:21]} 17. a3 {[%emt 0:00:35]} axb4 {[%emt 0:00:23]} 18. axb4 {[%emt 0:00:24]} O-O {[%emt 0:00:21]} 19. O-O {[%emt 0:00:44]} Qd6 {[%emt 0:03:06]} 20. Qe2 {[%emt 0:00:31]} Rfb8 {[%emt 0:01:00]} 21. g3 {[%emt 0:00:39]} Nb6 {[%emt 0:01:14]} 22. Rfe1 {[%emt 0:01:28]} Rxa1 {[%emt 0:00:30]} 23. Rxa1 {[%emt 0:00:22]} Na4 {[%emt 0:00:25]} 24. Qd2 {[%emt 0:00:37]} Rf8 {[%emt 0:00:27]} 25. Re1 {[%emt 0:01:17]} Kh7 {[%emt 0:00:45]} 26. Bd1 {[%emt 0:00:39]} Ra8 {[%emt 0:01:02]} 27. Bc2 {[%emt 0:00:54]} Qd7 {[%emt 0:01:34]} 28. h3 {[%emt 0:00:48]} Rf8 {[%emt 0:01:25]} 29. g4 {[%emt 0:02:30]} hxg4 {[%emt 0:00:22]} 30. hxg4 {[%emt 0:00:20]} Nh6 {[%emt 0:00:21]} 31. Ne5 {[%emt 0:01:24]} Bxe5 {[%emt 0:00:21]} 32. Rxe5 {[%emt 0:00:23]} Nf7 {[%emt 0:00:26]} 33. Rh5+ {[%emt 0:01:45]} Kg7 {[%emt 0:00:22]} 34. Qd3 {[%emt 0:00:27]} Rg8 {[%emt 0:00:29]} 35. Rh3 {[%emt 0:01:21]} Kf8 {[%emt 0:00:22]} 36. Qe2 {[%emt 0:00:25]} Nd6 {[%emt 0:00:52]} 37. Qe5 {[%emt 0:01:00]} Nf7 {[%emt 0:00:48]} 38. Qb8+ {[%emt 0:00:29]} Kg7 {[%emt 0:00:22]} 39. Qxg8+ {[%emt 0:01:35]} Kxg8 {[%emt 0:00:26]} 40. Bxg6 {[%emt 0:00:21]} Qd6 {[%emt 0:00:23]} 41. Rf3 {[%emt 0:01:07]} Qd8 {[%emt 0:00:47]} 42. Re3 {[%emt 0:00:34]} Qf8 {[%emt 0:02:07]} 43. f5 {[%emt 0:02:21]} exf5 {[%emt 0:00:27]} 44. Bxf5 {[%emt 0:00:25]} Ng5 {[%emt 0:00:35]} 45. Bg3 {[%emt 0:00:38]} e6 {[%emt 0:01:18]} 46. Bc2 {[%emt 0:00:31]} Qh6 {[%emt 0:00:23]} 47. Kf2 {[%emt 0:01:10]} Nxc3 {[%emt 0:00:50]} 48. Rxc3 {[%emt 0:00:39]} Ne4+ {[%emt 0:00:21]} 49. Bxe4 {[%emt 0:00:23]} Qd2+ {[%emt 0:00:22]} 0-1